bitfinex/quotes_BTCUSD_20250303
["timestamp","ask_amount","ask_price","bid_price","bid_amount"]
[1740968654262,0.00503775,92943.0,92922.0,0.32692]
[1740968654446,0.161391,92942.0,92925.0,0.00790486]
[1740968654645,0.38161275,92943.0,92942.0,0.007]
[1740968654851,0.38161275,92943.0,92942.0,0.012]
[1740968655232,0.38161275,92943.0,92927.0,0.21522]
[1740968655233,0.00503775,92943.0,92933.0,0.161406]
[1740968655352,0.16642675,92943.0,92930.0,0.215213]
[1740968655753,0.3241,92942.0,92922.0,0.006]
[1740968655953,0.161423,92923.0,92922.0,0.006]
[1740968656416,0.3241,92940.0,92922.0,0.006]
[1740968656612,0.0018833,92939.0,92922.0,0.008]
[1740968656908,0.0018833,92939.0,92922.0,0.006]
[1740968657331,0.161423,92923.0,92922.0,0.013]
[1740968657521,0.161419,92926.0,92922.0,0.006]
[1740968657721,0.3241,92940.0,92922.0,0.006]
[1740968657896,0.215197,92938.0,92914.0,0.00075394]
[1740968658080,0.161411,92930.0,92914.0,0.00075394]
[1740968658280,0.00799975,92938.0,92914.0,0.00075394]
[1740968658478,0.22319875,92938.0,92915.0,0.21525]
[1740968658827,0.00799975,92938.0,92922.0,0.161424]
[1740968659029,0.00799975,92938.0,92916.0,0.00075383]
[1740968659030,0.00188316,92937.0,92916.0,0.00075383]
[1740968659224,0.161427,92922.0,92904.0,0.00075384]
[1740968659454,0.1269,92936.0,92904.0,0.00075384]
[1740968659615,0.33576128,92935.0,92917.0,0.215244]
[1740968659834,0.161415,92929.0,92919.0,0.16143]
[1740968660067,0.161415,92929.0,92920.0,0.161429]
[1740968660216,0.3241,92935.0,92917.0,0.161432]
[1740968660594,0.3241,92935.0,91775.0,0.00021922]
[1740968660595,0.3241,92935.0,92918.0,0.00075384]
[1740968660795,0.3241,92935.0,92908.0,0.3]
[1740968661082,0.00969126,92934.0,92909.0,1.3384966]
[1740968661254,0.3241,92935.0,92909.0,1.3384966]
[1740968661255,0.00969126,92933.0,92921.0,0.161426]
[1740968661455,0.161409,92932.0,92922.0,0.161425]
[1740968661660,0.16141,92932.0,92922.0,0.03251128]
[1740968661837,0.3251,92935.0,92922.0,0.03251128]
[1740968662038,0.3251,92935.0,92911.0,0.3]
[1740968662342,0.3241,92935.0,92930.0,0.16141]
[1740968662593,0.3241,92935.0,92918.0,0.02160973]
[1740968662730,0.3241,92935.0,92929.0,0.161411]
[1740968663058,0.3241,92935.0,92912.0,0.00075353]
[1740968663059,0.3241,92935.0,92910.0,0.3176037]
[1740968663395,0.3241,92935.0,92925.0,0.215227]
[1740968663581,0.3241,92935.0,92914.0,0.02204559]
[1740968663803,0.3241,92935.0,92931.0,0.161408]
[1740968664116,0.3241,92935.0,92933.0,0.161406]
[1740968664292,0.00503775,92943.0,92942.0,0.16139]
[1740968664621,0.00503775,92943.0,92942.0,0.67544]
[1740968664772,0.00503775,92943.0,92942.0,0.16139]
[1740968664950,0.00503775,92943.0,92942.0,1.66139]
[1740968665971,0.00603775,92943.0,92942.0,1.66139]
[1740968666938,0.00603775,92943.0,92942.0,1.67220752]
[1740968667081,0.00603775,92943.0,92942.0,1.67820752]
[1740968667504,0.00503775,92943.0,92942.0,1.67220752]
[1740968667706,0.00503775,92943.0,92942.0,1.67920752]
[1740968667905,0.00503775,92943.0,92942.0,1.68620752]
[1740968668109,0.00503775,92943.0,92942.0,1.67920752]
[1740968668306,0.00503775,92943.0,92942.0,1.67220752]
[1740968668549,0.00503775,92943.0,92942.0,1.67920752]
[1740968668706,0.00503775,92943.0,92942.0,1.68620752]
[1740968668922,0.00503775,92943.0,92942.0,1.514]
[1740968669149,0.00503775,92943.0,92942.0,1.507]
[1740968669359,0.00503775,92943.0,92942.0,0.16839]
[1740968669564,0.00503775,92943.0,92942.0,0.014]
[1740968669724,0.00503775,92943.0,92942.0,0.16839]
[1740968669925,0.00503775,92943.0,92942.0,0.007]
[1740968670268,0.00503775,92943.0,92942.0,0.03948324]
[1740968670478,0.16642675,92943.0,92942.0,0.03948324]
[1740968670626,0.21390983,92943.0,92942.0,0.04348324]
[1740968670827,0.21390983,92943.0,92942.0,0.03648324]
[1740968671026,0.51390983,92943.0,92942.0,0.004]
[1740968671257,0.51202675,92943.0,92942.0,0.011]
[1740968671453,0.51202675,92943.0,92942.0,0.007]
[1740968671454,0.35863977,92943.0,92942.0,0.007]
[1740968671685,0.05863977,92943.0,92942.0,0.16139]
[1740968672033,0.05963977,92943.0,92942.0,0.16139]
[1740968672230,0.01403977,92943.0,92942.0,0.19387559]
[1740968672460,0.01403977,92943.0,92942.0,0.03248559]
[1740968672461,0.00603775,92943.0,92942.0,0.03248559]
[1740968672876,0.00503775,92943.0,92942.0,0.16139]
[1740968673078,0.00503775,92943.0,92942.0,0.16339]
[1740968673480,0.00503775,92943.0,92942.0,0.16139]
[1740968673904,0.00503775,92943.0,92942.0,0.16239]
[1740968674362,0.00503775,92943.0,92942.0,1.66539]
[1740968674771,0.00503775,92943.0,92942.0,1.66139]
[1740968674986,0.00503775,92943.0,92942.0,1.66539]
[1740968675201,0.00503775,92943.0,92942.0,1.67239]
[1740968677626,0.00503775,92943.0,92942.0,2.068459]
[1740968677990,0.00503775,92943.0,92942.0,1.67239]
[1740968680345,0.00503775,92943.0,92942.0,2.443423]
[1740968680619,0.00503775,92943.0,92942.0,2.4293]
[1740968681242,0.00537895,92943.0,92942.0,2.4293]
[1740968681462,0.00537895,92943.0,92942.0,1.85444]
[1740968682164,0.00537895,92943.0,92942.0,1.67239]
[1740968684569,0.00537895,92943.0,92942.0,1.70487346]
[1740968687179,0.00537895,92943.0,92942.0,2.29016246]
[1740968688242,0.00537895,92943.0,92942.0,1.70487346]
[1740968693132,0.00537895,92943.0,92942.0,2.95600646]
[1740968693347,0.00537895,92943.0,92942.0,2.97943746]
[1740968693586,0.00537895,92943.0,92942.0,3.08827448]
[1740968693783,0.00537895,92943.0,92942.0,3.00482848]
[1740968693980,0.00537895,92943.0,92942.0,2.88987248]
[1740968694189,0.00537895,92943.0,92942.0,2.63140048]
[1740968694335,0.00537895,92943.0,92942.0,2.10971048]
[1740968694528,0.00537895,92943.0,92942.0,2.31461148]
[1740968694746,0.00537895,92943.0,92942.0,2.25114248]
[1740968694947,0.00537895,92943.0,92942.0,1.70687346]
[1740968695230,0.00537895,92943.0,92942.0,1.54548346]
[1740968695682,0.00537895,92943.0,92942.0,1.70687346]
[1740968696336,0.00537895,92943.0,92942.0,1.54548346]
[1740968696556,0.24176795,92943.0,92942.0,1.54548346]
[1740968696765,0.61466795,92943.0,92942.0,0.04548346]
[1740968697179,0.45327895,92943.0,92942.0,0.04548346]
[1740968697427,0.61466795,92943.0,92942.0,1.506]
[1740968697625,0.61466795,92943.0,92942.0,0.004]
[1740968697840,0.62269173,92943.0,92942.0,0.004]
[1740968698047,0.62269173,92943.0,92942.0,0.03848024]
[1740968698446,0.62269173,92943.0,92942.0,0.006]
[1740968699313,0.62269173,92943.0,92942.0,0.002]
[1740968699652,0.62269173,92943.0,92942.0,0.006]
[1740968701834,0.46130273,92943.0,92942.0,0.006]
[1740968702034,0.54769173,92943.0,92942.0,0.006]
[1740968702405,0.54769173,92943.0,92942.0,1.506]
[1740968702876,0.38630273,92943.0,92942.0,1.506]
[1740968703014,0.38630273,92943.0,92942.0,1.69987024]
[1740968703203,0.38630273,92943.0,92942.0,1.69387024]
[1740968703407,0.33850273,92943.0,92942.0,1.69387024]
[1740968703921,0.33750273,92943.0,92942.0,1.53248024]
[1740968704280,0.33750273,92943.0,92942.0,1.53648024]
[1740968704670,0.32947895,92943.0,92942.0,1.53648024]
[1740968704872,0.49086795,92943.0,92942.0,1.53648024]
[1740968705231,0.49086795,92943.0,92942.0,1.53848024]
[1740968705656,0.49086795,92943.0,92942.0,1.53648024]
[1740968705956,0.49086795,92943.0,92942.0,1.53348024]
[1740968706155,0.49086795,92943.0,92942.0,1.53248024]
[1740968706335,0.49086795,92943.0,92942.0,1.53648024]
[1740968706550,0.32947895,92943.0,92942.0,1.53648024]
[1740968706734,0.33749903,92943.0,92942.0,1.53248024]
[1740968706956,0.49888803,92943.0,92942.0,1.53248024]
[1740968707146,0.49888803,92943.0,92942.0,1.53348024]
[1740968707597,0.49888803,92943.0,92942.0,1.53248024]
[1740968708020,0.49888803,92943.0,92942.0,0.03248024]
[1740968708512,0.33749903,92943.0,92929.0,1.5]
[1740968709031,0.33749903,92943.0,92930.0,0.215215]
[1740968709154,0.161394,92940.0,92929.0,1.5]
[1740968709353,0.161398,92938.0,92932.0,0.161408]
[1740968709562,0.00802008,92942.0,92930.0,0.03249938]
[1740968709763,0.00802008,92942.0,92933.0,0.03249577]
[1740968709965,0.00188292,92941.0,92931.0,0.03249818]
[1740968710183,0.161409,92932.0,92929.0,1.5]
[1740968710382,0.161406,92934.0,92929.0,1.502]
[1740968710601,0.161407,92933.0,92929.0,1.502]
[1740968711010,0.161403,92936.0,92929.0,1.502]
[1740968711206,0.00990309,92941.0,92929.0,1.502]
[1740968711406,0.00990309,92941.0,92925.0,0.01074258]
[1740968711407,0.00802008,92941.0,92940.0,0.161394]
[1740968711678,0.00537895,92943.0,92942.0,0.16139]
[1740968711886,0.00537895,92943.0,92942.0,1.66139]
[1740968712423,0.00537895,92943.0,92942.0,1.5]
[1740968713546,0.00537895,92943.0,92942.0,1.501]
[1740968713757,0.16676795,92943.0,92942.0,1.501]
[1740968714128,0.16668153,92943.0,92942.0,1.5]
[1740968714536,0.00529253,92943.0,92925.0,0.01074258]
[1740968714752,0.22047853,92943.0,92924.0,0.161421]
[1740968714969,0.22047853,92943.0,92942.0,0.004]
[1740968714970,0.38186753,92943.0,92942.0,0.004]
[1740968715773,0.38186753,92943.0,92942.0,0.003]
[1740968715939,0.70596753,92943.0,92942.0,0.003]
[1740968716564,0.1614,92937.0,92932.0,1.5]
[1740968716742,0.161402,92936.0,92932.0,1.5]
[1740968717069,0.33741663,92943.0,92932.0,1.5]
[1740968717070,0.33741663,92943.0,92933.0,0.03249584]
[1740968717218,0.161404,92934.0,92933.0,0.03249584]
[1740968718846,0.1694281,92934.0,92933.0,0.03249584]
[1740968719429,0.1694281,92934.0,92933.0,0.03649584]
[1740968719637,0.2185281,92934.0,92933.0,0.03649584]
[1740968720878,0.2185281,92934.0,92933.0,1.53649584]
[1740968721146,0.2185281,92934.0,92933.0,1.504]
[1740968721967,0.5426281,92934.0,92933.0,1.504]
[1740968722343,0.5426281,92934.0,92933.0,0.004]
[1740968724357,0.9183281,92934.0,92933.0,0.004]
[1740968724673,0.9183281,92934.0,92918.0,0.0001706]
[1740968724674,0.28223,92919.0,92918.0,0.0001706]
[1740968724923,0.61619499,92919.0,92918.0,0.0001706]
[1740968725092,0.91619499,92919.0,92918.0,0.0001706]
[1740968726300,0.92442647,92919.0,92918.0,0.0001706]
[1740968726916,0.94530883,92919.0,92918.0,0.0001706]
[1740968727977,0.94930883,92919.0,92918.0,0.0011706]
[1740968728173,0.99930883,92919.0,92918.0,6e-07]
[1740968729163,0.99930883,92919.0,92896.0,0.0001706]
[1740968729164,0.587869,92897.0,92896.0,0.0001706]
[1740968729372,1.07779109,92897.0,92896.0,0.0001706]
[1740968730254,1.08846347,92897.0,92896.0,0.00321835]
[1740968730457,1.08846347,92897.0,92896.0,0.00421835]
[1740968731167,1.10934583,92897.0,92896.0,0.00121835]
[1740968731668,0.587874,92894.0,92893.0,5e-08]
[1740968731851,0.59910024,92894.0,92893.0,5e-08]
[1740968732258,0.6199826,92894.0,92893.0,5e-08]
[1740968733109,0.6239826,92894.0,92893.0,5e-08]
[1740968733489,0.6309826,92894.0,92893.0,0.00100005]
[1740968733692,1.01330629,92894.0,92893.0,0.00100005]
[1740968734254,1.01330629,92894.0,92893.0,5e-08]
[1740968735004,0.161549,92851.0,92850.0,0.0001707]
[1740968735212,0.17535485,92851.0,92850.0,0.00029124]
[1740968735417,0.01380585,92851.0,92850.0,0.00029124]
[1740968735847,0.17535485,92851.0,92850.0,0.04403075]
[1740968736051,0.17535485,92851.0,92850.0,0.00029124]
[1740968736251,0.17635485,92851.0,92850.0,0.00729124]
[1740968736570,0.01480585,92851.0,92850.0,0.00729124]
[1740968736799,0.01380585,92851.0,92850.0,0.00329124]
[1740968736978,0.17635485,92851.0,92850.0,0.00729124]
[1740968737148,0.01480585,92851.0,92850.0,1.50429124]
[1740968737339,0.17635485,92851.0,92850.0,1.50429124]
[1740968737938,0.17635485,92851.0,92850.0,1.50029124]
[1740968738160,0.17535485,92851.0,92850.0,1.50029124]
[1740968739415,0.17635485,92851.0,92850.0,1.50029124]
[1740968739814,0.01480585,92851.0,92850.0,1.50029124]
[1740968740531,0.001,92851.0,92850.0,1.78434124]
[1740968740877,0.01480585,92851.0,92850.0,1.50029124]
[1740968741117,0.01480585,92851.0,92850.0,1.66184124]
[1740968741312,0.01380585,92851.0,92850.0,1.66184124]
[1740968741720,0.17535485,92851.0,92850.0,1.50029124]
[1740968742199,0.17535485,92851.0,92850.0,1.50529124]
[1740968742940,0.01480585,92851.0,92850.0,1.50229124]
[1740968743141,0.17635485,92851.0,92850.0,1.50529124]
[1740968743356,0.17535485,92851.0,92850.0,1.50329124]
[1740968743516,0.17535485,92851.0,92850.0,1.50029124]
[1740968743723,0.17535485,92851.0,92850.0,1.50329124]
[1740968744864,0.01380585,92851.0,92850.0,1.50329124]
[1740968745029,0.17535485,92851.0,92850.0,1.50329124]
[1740968745655,0.17535485,92851.0,92850.0,1.54703784]
[1740968746255,0.01380585,92851.0,92850.0,1.54703784]
[1740968747070,0.17535485,92851.0,92850.0,1.54703784]
[1740968747834,0.17535485,92851.0,92850.0,0.04703784]
[1740968748463,0.17535485,92851.0,92850.0,0.00329124]
[1740968749259,0.01380585,92851.0,92850.0,0.00329124]
[1740968749476,0.17535485,92851.0,92850.0,0.00329124]
[1740968751059,0.01380585,92851.0,92850.0,0.00329124]
[1740968751447,0.17535485,92851.0,92850.0,0.00329124]
[1740968751807,0.33790585,92851.0,92850.0,0.00329124]
[1740968751950,0.49945485,92851.0,92850.0,0.00329124]
[1740968752266,0.49945485,92851.0,92850.0,0.04703944]
[1740968752267,0.50744758,92851.0,92850.0,0.04703944]
[1740968752703,0.50744758,92851.0,92850.0,0.00329124]
[1740968754155,0.34589858,92851.0,92850.0,0.00329124]
[1740968754361,0.50744758,92851.0,92850.0,0.00329124]
[1740968754823,0.5202657,92851.0,92850.0,0.00329124]
[1740968755401,0.6019657,92851.0,92850.0,0.00329124]
[1740968755603,0.6019657,92851.0,92850.0,0.00229124]
[1740968755604,0.9491657,92851.0,92850.0,0.00229124]
[1740968756267,0.9491657,92851.0,92850.0,2.4e-07]
[1740968756483,0.97087394,92851.0,92850.0,0.001]
[1740968756664,0.541268,92840.0,92839.0,0.0001704]
[1740968756844,0.55571189,92840.0,92839.0,0.0001704]
[1740968757429,0.60491189,92840.0,92839.0,0.0001704]
[1740968757626,0.62572274,92840.0,92839.0,4e-07]
[1740968758170,0.94982274,92840.0,92839.0,4e-07]
[1740968758799,0.93700462,92840.0,92839.0,4e-07]
[1740968759200,0.94400462,92840.0,92839.0,4e-07]
[1740968759364,0.94900462,92840.0,92839.0,4e-07]
[1740968759717,0.94200462,92840.0,92839.0,4e-07]
[1740968760152,0.95223996,92840.0,92839.0,4e-07]
[1740968760492,0.94400462,92840.0,92839.0,4e-07]
[1740968760664,0.56430462,92840.0,92839.0,4e-07]
[1740968760866,0.51510462,92840.0,92839.0,4e-07]
[1740968761464,0.35353662,92840.0,92839.0,4e-07]
[1740968761908,0.35353662,92840.0,92839.0,0.20533904]
[1740968762225,0.34653662,92840.0,92839.0,4e-07]
[1740968762627,0.01499273,92840.0,92839.0,0.1615704]
[1740968762826,0.01899273,92840.0,92839.0,0.1615704]
[1740968763196,0.01199273,92840.0,92839.0,0.1615704]
[1740968763665,0.00799273,92840.0,92839.0,0.1615704]
[1740968763872,0.00799273,92840.0,92839.0,0.16232758]
[1740968764402,0.00799273,92840.0,92839.0,0.51082758]
[1740968764632,0.00799273,92840.0,92839.0,1.97258098]
[1740968764936,0.00012081,92851.0,92850.0,0.16155]
[1740968765873,0.00012081,92851.0,92850.0,0.16055]
[1740968766467,0.00112081,92851.0,92850.0,0.46130629]
[1740968766702,0.00212081,92851.0,92850.0,0.46455]
[1740968766891,0.00212081,92851.0,92850.0,1.34494502]
[1740968767079,0.00012081,92851.0,92850.0,2.13496402]
[1740968767301,0.3241,92892.0,92859.0,0.049]
[1740968767538,0.01247735,92892.0,92861.0,0.3]
[1740968767802,0.01247735,92892.0,92881.0,0.215328]
[1740968768002,0.00800998,92891.0,92882.0,1.5007552]
[1740968768204,0.00800998,92891.0,92883.0,0.0007552]
[1740968768407,0.00800998,92891.0,92883.0,0.04370298]
[1740968768616,0.00800998,92891.0,92885.0,0.161489]
[1740968768767,0.00800998,92891.0,92884.0,0.04445589]
[1740968768969,0.00800998,92891.0,92886.0,0.04369804]
[1740968769196,0.00800998,92891.0,92882.0,1.51083076]
[1740968769411,0.00212101,92892.0,92882.0,1.5]
[1740968769597,0.01381082,92892.0,92883.0,0.164492]
[1740968769772,0.161486,92888.0,92883.0,0.003]
[1740968769973,0.215306,92891.0,92883.0,0.003]
[1740968770176,0.002,92884.0,92883.0,0.006]
[1740968770406,0.01389266,92884.0,92883.0,0.003]
[1740968770577,0.01389266,92884.0,92871.0,0.01092127]
[1740968770781,0.01224041,92883.0,92872.0,1.5]
[1740968770976,0.01224041,92883.0,92882.0,0.161495]
[1740968771339,0.01224041,92883.0,92872.0,1.5]
[1740968771538,0.01424041,92883.0,92873.0,0.0007555]
[1740968771666,0.01224041,92883.0,92873.0,0.0007555]
[1740968771872,0.002,92890.0,92889.0,0.161483]
[1740968772072,0.01354495,92890.0,92884.0,0.215321]
[1740968772273,0.01354495,92890.0,92885.0,0.21532]
[1740968772495,0.01354495,92890.0,92884.0,0.21607525]
[1740968772675,0.01354495,92890.0,92889.0,0.161483]
[1740968772874,0.01154495,92890.0,92889.0,0.161483]
[1740968773071,0.01354495,92890.0,92889.0,0.161483]
[1740968773313,0.01354495,92890.0,92866.0,0.215363]
[1740968773516,0.01354495,92890.0,92886.0,0.161487]
[1740968773862,0.01354495,92890.0,92884.0,0.00775525]
[1740968774082,0.01354495,92890.0,92885.0,0.16149]
[1740968774269,0.01354495,92890.0,92884.0,0.00775525]
[1740968774475,0.01354495,92890.0,92889.0,0.161483]
[1740968774697,0.01154495,92890.0,92889.0,0.161483]
[1740968774974,0.01354495,92890.0,92884.0,0.007]
[1740968775168,0.161489,92886.0,92876.0,0.161504]
[1740968775374,0.217317,92886.0,92885.0,0.05]
[1740968776330,0.22909375,92886.0,92885.0,0.05]
[1740968776559,0.55319375,92886.0,92885.0,0.052]
[1740968776876,0.56117495,92886.0,92885.0,0.052]
[1740968777088,0.86117495,92886.0,92885.0,0.052]
[1740968777486,0.86117495,92886.0,92885.0,0.055]
[1740968778076,0.86117495,92886.0,92885.0,0.053]
[1740968778677,0.86317495,92886.0,92885.0,0.053]
[1740968779473,0.34785795,92886.0,92885.0,0.05]
[1740968779687,0.35185795,92886.0,92885.0,0.05]
[1740968780443,0.50934595,92886.0,92885.0,0.09369897]
[1740968780795,0.3360812,92886.0,92885.0,0.05]
[1740968780995,0.3360812,92886.0,92885.0,0.21149]
[1740968781205,0.3261,92886.0,92885.0,0.21149]
[1740968781625,0.3281,92886.0,92885.0,0.05]
[1740968781830,0.487588,92886.0,92885.0,0.05]
[1740968782421,0.49936475,92886.0,92885.0,0.05]
[1740968783445,0.8073429,92886.0,92885.0,0.05]
[1740968783646,0.8610429,92886.0,92885.0,0.05]
[1740968783847,0.002,92854.0,92827.0,0.0751]
[1740968784026,0.002,92867.0,92842.0,0.10959375]
[1740968784246,0.002,92853.0,92850.0,0.16155]
[1740968784452,0.002,92853.0,92842.0,0.00075673]
[1740968784453,0.002,92853.0,92839.0,0.01067478]
[1740968784647,0.002,92853.0,92847.0,0.161555]
[1740968784857,0.002,92853.0,92839.0,0.01067478]
[1740968785056,0.002,92852.0,92842.0,0.215419]
[1740968785233,0.161549,92851.0,92841.0,0.0004018]
[1740968785439,0.002,92849.0,92841.0,0.0004018]
[1740968785844,0.002,92849.0,92847.0,0.005]
[1740968786045,0.002,92849.0,92842.0,0.04375566]
[1740968786274,0.083,92862.0,92842.0,0.04375566]
[1740968786275,0.161563,92843.0,92842.0,0.007]
[1740968786472,0.17783287,92843.0,92842.0,0.007]
[1740968786655,0.17783287,92843.0,92841.0,0.0004018]
[1740968786656,0.01626987,92843.0,92841.0,0.0054018]
[1740968786858,0.161564,92842.0,92841.0,0.0004018]
[1740968787063,0.163564,92842.0,92841.0,0.0004018]
[1740968787265,0.17789187,92842.0,92841.0,0.0005723]
[1740968787467,0.17977675,92842.0,92841.0,0.0005723]
[1740968787662,0.50387675,92842.0,92841.0,0.0005723]
[1740968787899,0.50199187,92842.0,92841.0,0.0005723]
[1740968788272,0.34042787,92842.0,92841.0,0.0005723]
[1740968788478,0.3241,92842.0,92841.0,0.1621383]
[1740968788727,0.3241,92842.0,92841.0,0.1651383]
[1740968789063,0.3241,92842.0,92841.0,0.1661383]
[1740968789260,0.3241,92842.0,92841.0,0.1631383]
[1740968789400,0.34042787,92842.0,92841.0,0.0015723]
[1740968789607,0.50199187,92842.0,92841.0,0.0035723]
[1740968789974,0.50199187,92842.0,92841.0,0.0025723]
[1740968790368,0.50299187,92842.0,92841.0,0.0025723]
[1740968790516,0.80299187,92842.0,92841.0,0.0025723]
[1740968791138,0.81098063,92842.0,92841.0,0.0025723]
[1740968791337,0.81098063,92842.0,92841.0,0.0005723]
[1740968791535,0.80998063,92842.0,92841.0,0.0025723]
[1740968792247,0.81098063,92842.0,92841.0,0.0025723]
[1740968792395,0.81098063,92842.0,92841.0,0.0005723]
[1740968792918,0.81298063,92842.0,92841.0,0.0005723]
[1740968793659,0.463568,92840.0,92839.0,4e-07]
[1740968793808,0.31644389,92840.0,92839.0,4e-07]
[1740968794007,0.47801189,92840.0,92839.0,4e-07]
[1740968794944,0.48600065,92840.0,92839.0,4e-07]
[1740968795343,0.48700065,92840.0,92839.0,4e-07]
[1740968795738,0.81110065,92840.0,92839.0,4e-07]
[1740968795943,0.81210065,92840.0,92839.0,4e-07]
[1740968796353,0.81010065,92840.0,92839.0,4e-07]
[1740968796552,0.81210065,92840.0,92839.0,4e-07]
[1740968797227,1.00331709,92840.0,92839.0,4e-07]
[1740968797461,0.463587,92829.0,92828.0,0.005]
[1740968797662,0.80276908,92829.0,92828.0,0.005]
[1740968798735,0.89005816,92829.0,92828.0,0.005]
[1740968798929,0.463592,92826.0,92825.0,4e-07]
[1740968799222,0.55346112,92826.0,92825.0,4e-07]
[1740968799556,0.55546112,92826.0,92825.0,4e-07]
[1740968799893,0.87956112,92826.0,92825.0,4e-07]
[1740968801326,0.88754988,92826.0,92825.0,4e-07]
[1740968801709,0.81284988,92826.0,92825.0,4e-07]
[1740968801868,0.81784988,92826.0,92825.0,4e-07]
[1740968802134,0.81484988,92826.0,92825.0,4e-07]
[1740968802451,0.81284988,92826.0,92825.0,4e-07]
[1740968802808,0.81084988,92826.0,92825.0,4e-07]
[1740968803016,0.91466472,92826.0,92825.0,4e-07]
[1740968803243,0.91566472,92826.0,92825.0,4e-07]
[1740968803466,0.91566472,92826.0,92820.0,0.00089518]
[1740968803467,0.21548,92816.0,92800.0,0.0504704]
[1740968803606,0.17784579,92803.0,92800.0,0.0504704]
[1740968803803,0.17973178,92803.0,92800.0,0.0504704]
[1740968804866,0.18013482,92803.0,92800.0,0.0504704]
[1740968805063,0.161634,92802.0,92800.0,0.0504704]
[1740968805269,0.17825416,92802.0,92800.0,0.0504704]
[1740968805446,0.47825416,92802.0,92800.0,0.0504704]
[1740968805648,0.56321416,92802.0,92800.0,0.0504704]
[1740968806381,0.56621416,92802.0,92800.0,0.0504704]
[1740968806611,0.48125416,92802.0,92800.0,0.0504704]
[1740968806742,0.58113882,92802.0,92800.0,0.0504704]
[1740968807185,0.49621882,92802.0,92800.0,0.0504704]
[1740968807486,0.58113882,92802.0,92800.0,0.0504704]
[1740968807835,0.49321882,92802.0,92800.0,0.0504704]
[1740968808031,0.89919882,92802.0,92800.0,0.0504704]
[1740968808269,0.90419882,92802.0,92800.0,0.0504704]
[1740968808478,0.90019882,92802.0,92800.0,0.0504704]
[1740968808887,0.95019882,92802.0,92800.0,0.0504704]
[1740968809135,0.95719882,92802.0,92800.0,0.0504704]
[1740968809710,0.511636,92801.0,92800.0,4e-07]
[1740968809921,0.52831422,92801.0,92800.0,4e-07]
[1740968810896,0.54901668,92801.0,92800.0,4e-07]
[1740968811737,0.55601668,92801.0,92800.0,4e-07]
[1740968812579,0.56301668,92801.0,92800.0,4e-07]
[1740968813024,0.56301668,92801.0,92789.0,8.8e-07]
[1740968813025,0.461655,92790.0,92789.0,8.8e-07]
[1740968813248,0.88278159,92790.0,92789.0,8.8e-07]
[1740968813466,0.461678,92777.0,92776.0,4.7e-07]
[1740968813668,0.47940146,92777.0,92776.0,4.7e-07]
[1740968814017,0.58748058,92777.0,92776.0,4.7e-07]
[1740968814421,0.35,92776.0,92771.0,0.05]
[1740968814599,0.44687529,92772.0,92771.0,0.05]
[1740968814808,0.77097529,92772.0,92771.0,0.05]
[1740968815136,0.91181529,92772.0,92771.0,0.05]
[1740968815342,0.77097529,92772.0,92771.0,0.05]
[1740968815516,0.68777529,92772.0,92771.0,0.05]
[1740968815719,0.34277808,92772.0,92771.0,0.05]
[1740968815904,0.34577808,92772.0,92771.0,0.05]
[1740968816111,0.34577808,92772.0,92771.0,0.10420701]
[1740968816310,0.36570831,92772.0,92771.0,0.05]
[1740968816529,0.04957297,92772.0,92771.0,0.05]
[1740968817022,0.05057297,92772.0,92771.0,0.05]
[1740968817266,0.04657297,92772.0,92771.0,1.55]
[1740968817463,0.02664274,92772.0,92771.0,1.55]
[1740968817649,0.0003412,92802.0,92797.0,0.161643]
[1740968817849,0.0003412,92802.0,92801.0,0.161636]
[1740968818273,0.01699038,92802.0,92801.0,1.5]
[1740968818698,0.01699038,92802.0,92801.0,1.49942055]
[1740968818900,0.0013412,92802.0,92801.0,1.49942055]
[1740968819147,0.0003412,92802.0,92801.0,1.49954136]
[1740968820146,0.0013412,92802.0,92801.0,1.51042088]
[1740968820363,0.0013412,92802.0,92801.0,3.09833288]
[1740968820559,0.0013412,92802.0,92801.0,1.93380288]
[1740968820760,0.0013412,92802.0,92801.0,2.28995749]
[1740968820965,0.17062961,92841.0,92840.0,0.161568]
[1740968821166,0.1599877,92841.0,92840.0,0.161568]
[1740968821361,0.1599877,92841.0,92840.0,0.21465334]
[1740968822267,0.18195103,92841.0,92840.0,0.21477415]
[1740968822475,0.18195103,92841.0,92840.0,0.63433415]
[1740968822627,0.17995103,92841.0,92840.0,0.81144015]
[1740968822829,0.19433691,92841.0,92840.0,0.05520615]
[1740968823067,0.19433691,92841.0,92840.0,0.21977415]
[1740968823464,0.1599877,92841.0,92840.0,0.21977415]
[1740968824112,0.1599877,92841.0,92840.0,0.21877415]
[1740968824293,0.1599877,92841.0,92840.0,0.22177415]
[1740968824464,0.1599877,92841.0,92840.0,0.06020615]
[1740968824732,0.17437358,92841.0,92840.0,0.06020615]
[1740968825060,0.17625854,92841.0,92840.0,0.05737675]
[1740968825338,0.17471478,92841.0,92840.0,0.00629141]
[1740968825532,0.17671478,92841.0,92840.0,0.01029141]
[1740968825708,0.1623289,92841.0,92840.0,0.01029141]
[1740968825916,0.1623289,92841.0,92840.0,0.00029141]
[1740968825917,0.19462145,92841.0,92840.0,0.00029141]
[1740968826086,0.19650664,92841.0,92840.0,0.00029141]
[1740968826289,0.19650664,92841.0,92840.0,0.00329141]
[1740968826490,0.19462145,92841.0,92840.0,0.00329141]
[1740968826929,0.35618745,92841.0,92840.0,0.04346893]
[1740968827129,0.65618745,92841.0,92840.0,0.00029141]
[1740968827459,0.65618745,92841.0,92840.0,0.00329141]
[1740968827869,0.65618745,92841.0,92840.0,0.00029141]
[1740968828142,0.98028745,92841.0,92840.0,0.00429141]
[1740968828287,0.99302124,92841.0,92840.0,0.00429141]
[1740968828745,0.99302124,92841.0,92840.0,0.00229141]
[1740968828901,0.97311457,92841.0,92840.0,0.00429141]
[1740968830546,0.98106751,92841.0,92840.0,0.00429141]
[1740968832149,0.98106751,92841.0,92840.0,0.05429141]
[1740968832597,0.98106751,92841.0,92840.0,0.05229141]
[1740968832944,0.98506751,92841.0,92840.0,0.05229141]
[1740968833665,0.98506751,92841.0,92840.0,0.05029141]
[1740968833962,0.98706751,92841.0,92840.0,0.05029141]
[1740968834707,0.68706751,92841.0,92840.0,0.05029141]
[1740968835827,0.68306751,92841.0,92840.0,0.05029141]
[1740968836039,0.68706751,92841.0,92840.0,0.05029141]
[1740968836216,0.98706751,92841.0,92840.0,0.05029141]
[1740968836394,0.97433372,92841.0,92840.0,0.05029141]
[1740968837026,0.97233372,92841.0,92840.0,0.05029141]